fUSD/lending_fUSD_20241020
["ID","MTS","AMOUNT","RATE_DAILY","PERIOD"]
[340548008,1729437046162,-2293.82112,0.00011,2]
[340548009,1729437046173,-344.831931,0.00011,2]
[340548010,1729437046184,-291.09122005,0.00011,2]
[340548011,1729437046195,-4869.42052628,0.00011,2]
[340548012,1729437046207,-1833.81575699,0.00011,2]
[340548013,1729437046218,-819.669413,0.00011,2]
[340548014,1729437046229,-613741.70050012,0.00011,2]
[340548015,1729437046240,-368.16701138,0.00011,2]
[340548016,1729437046264,-65457.237796,0.00011,2]
[340548019,1729437200433,500.0,0.00026916,120]
[340548020,1729437206093,200.0,0.00026916,120]
[340548024,1729437345583,-325.4722801,0.0001069,2]
[340548025,1729437428326,1000.0,0.00027,60]
[340548026,1729437505361,150.0,0.00027,60]
[340548027,1729437543731,-616.491769,0.00010673,2]
[340548033,1729437708346,-259.3108,0.00010627,2]
[340548036,1729437798821,500.0,0.00027,120]
[340548037,1729437803568,200.0,0.00027,120]
[340548038,1729437816391,150.0,9.563e-05,2]
[340548039,1729437816414,150.0,9.563e-05,2]
[340548040,1729437816437,150.0,9.563e-05,2]
[340548041,1729437816458,150.0,9.563e-05,2]
[340548042,1729437816479,125.24,9.563e-05,2]
[340548043,1729438033139,-924.18528642,0.000107,2]
[340548044,1729438059307,-764.01645085,0.00010477,2]
[340548049,1729438123967,2031.48509409,0.000242,120]
[340548054,1729438154318,250.0,0.00010391,2]
[340548055,1729438154341,765.2725224,0.00010391,2]
[340548056,1729438161177,150.0,0.00010407,2]
[340548057,1729438161198,150.0,0.00010407,2]
[340548058,1729438162691,-325.4722801,0.00010407,2]
[340548059,1729438205454,277.32,0.00010313,2]
[340548070,1729438232120,-677.35,0.00010407,2]
[340548071,1729438232132,-405.8947297,0.00010407,2]
[340548072,1729438232144,-276.04857459,0.00010407,2]
[340548073,1729438232154,-385.7885025,0.00010461,2]
[340548074,1729438232191,-364.45564995,0.00010461,2]
[340548075,1729438232202,-112.09584755,0.00010461,2]
[340548076,1729438232212,-150.0,0.00010468,2]
[340548077,1729438232221,-1142.14354915,0.00010477,2]
[340548078,1729438232230,-295.72,0.00010491,2]
[340548079,1729438232239,-304.04,0.00010491,2]
[340548080,1729438232249,-201.57,0.00010506,2]
[340548081,1729438232258,-1984.76558438,0.0001068,2]
[340548082,1729438232268,-511.605,0.0001078,2]
[340548083,1729438232277,-174.63,0.0001078,2]
[340548084,1729438232291,-924.18045387,0.000108,2]
[340548085,1729438232303,-329.78341403,0.0001089,2]
[340548086,1729438232313,-2369.29,0.0001089,2]
[340548087,1729438232323,-499.99,0.0001089,2]
[340548088,1729438232332,-300.0,0.00010898,2]
[340548089,1729438232342,-150.0,0.00010899,2]
[340548090,1729438232351,-1789.94113086,0.000109,2]
[340548091,1729438232361,-2454.44502015,0.000109,2]
[340548092,1729438232372,-22981.73377985,0.000109,2]
[340548093,1729438232382,-153.70448225,0.000109,2]
[340548094,1729438232391,-2736.83043691,0.000109,2]
[340548096,1729438232402,-274.66,0.00010959,2]
[340548098,1729438232412,-291.42,0.00010959,2]
[340548100,1729438232421,-160.5677832,0.00010973,2]
[340548101,1729438232430,-537.48724428,0.00010973,2]
[340548103,1729438232439,-500.0,0.00010973,2]
[340548105,1729438232449,-9068.09931438,0.0001098,2]
[340548107,1729438232459,-192.61303116,0.0001099,2]
[340548109,1729438232468,-262.01,0.00010998,2]
[340548111,1729438232477,-9300.78946856,0.00010998,2]
[340548113,1729438232487,-1380.13297995,0.00010999,2]
[340548114,1729438232496,-428.25568314,0.00010999,2]
[340548115,1729438232505,-500.0,0.00010999,2]
[340548116,1729438232514,-500.0,0.00010999,2]
[340548117,1729438232523,-524.61187788,0.00010999,2]
[340548118,1729438232535,-450.3322327,0.00010999,2]
[340548119,1729438232544,-261866.52627978,0.00011,2]
[340548120,1729438232555,-12328.17584193,0.00011,2]
[340548121,1729438232566,-1319.81029931,0.00011,2]
[340548122,1729438232576,-2449.60772275,0.00011,2]
[340548126,1729438238706,-920.0886533,0.00010999,2]
[340548128,1729438238716,-795.05155626,0.00011,2]
[340548131,1729438238727,-539.033916,0.00011,2]
[340548133,1729438238738,-13621.29300004,0.00011,2]
[340548135,1729438238869,-52535.90408783,0.00011,2]
[340548136,1729438239600,-3740.96751239,0.00011,2]
[340548137,1729438239612,-1992.9335772,0.00011,2]
[340548138,1729438239623,-503.90753807,0.00011,2]
[340548139,1729438239778,-15442.77051764,0.00011,2]
[340548140,1729438239793,-87034.5565229,0.00011,2]
[340548141,1729438239805,-130822.08551998,0.00011,2]
[340548150,1729438240154,-1525.9999996,0.00011,2]
[340548151,1729438240166,-2712.20589371,0.00011,2]
[340548152,1729438240267,-289.6333911,0.00011,2]
[340548153,1729438240278,-1879.71933333,0.00011,2]
[340548154,1729438240293,-1030.90320426,0.00011,2]
[340548155,1729438240374,-23000.0,0.00011,2]
[340548157,1729438240385,-792.81019852,0.00011,2]
[340548159,1729438240396,-3308.5482791,0.00011,2]
[340548183,1729438243130,-8454.45828736,0.00011,2]
[340548185,1729438243143,-1000.0,0.00011,2]
[340548209,1729438244117,-47279.33750372,0.00011,2]
[340548210,1729438244128,-21220.78577,0.00011,2]
[340548211,1729438244139,-28557.66845448,0.00011,2]
[340548212,1729438244151,-4500.61186992,0.00011,2]
[340548213,1729438244161,-6005.64239998,0.00011,2]
[340548214,1729438244172,-2133.38791753,0.00011,2]
[340548215,1729438244184,-8991.08759186,0.00011,2]
[340548216,1729438244195,-5905.969,0.00011,2]
[340548217,1729438244205,-813.80165371,0.00011,2]
[340548218,1729438244216,-19916.33576816,0.00011,2]
[340548230,1729438246222,-613.39243554,0.00010999,2]
[340548231,1729438246232,-11350.87665659,0.00011,2]
[340548233,1729438333425,731.19,9.688e-05,2]
[340548234,1729438403147,500.0,0.00027,120]
[340548235,1729438406316,-300.0,0.00010799,2]
[340548236,1729438406340,-150.0,0.00010799,2]
[340548237,1729438406362,-150.0,0.000108,2]
[340548238,1729438407721,202.394564,0.00027,120]
[340548270,1729438838892,150.0,0.00010373,2]
[340548271,1729438838913,175.4722801,0.00010373,2]
[340548272,1729438841097,-250.0,0.00010427,2]
[340548273,1729438842521,2000.0,0.00027,60]
[340548274,1729438842959,0.3302889,0.0001,2]
[340548275,1729438842979,150.0,0.0001,2]
[340548276,1729438843000,99.6697111,0.0001,2]
[340548277,1729438843947,-181.47,0.00010473,2]
[340548278,1729438853853,50.3302889,9.322e-05,2]
[340548279,1729438853876,150.0,9.322e-05,2]
[340548280,1729438853898,150.0,9.322e-05,2]
[340548281,1729438853919,195.48530749,9.322e-05,2]
[340548282,1729438853942,148.81440361,9.322e-05,2]
[340548283,1729438860014,2055.4549,0.00027,60]
[340548297,1729438998997,500.0,0.00027,120]
[340548298,1729439045809,550.0,0.00010375,2]
[340548299,1729439053526,101.18559639,0.00010371,2]
[340548300,1729439053549,411.81440361,0.00010371,2]
[340548301,1729439076796,388.18559639,0.00010381,2]
[340548302,1729439076816,800.0,0.00010381,2]
[340548303,1729439076837,664.23440361,0.00010381,2]
[340548304,1729439089201,1000.0,0.00027,60]
[340548305,1729439209255,135.76559639,0.00010403,2]
[340548306,1729439209274,295.40440361,0.00010403,2]
[340548307,1729439219647,200.0,0.00010403,2]
[340548308,1729439239119,-150.0,0.00010413,2]
[340548309,1729439239140,-560.4995,0.00010484,2]
[340548310,1729439239160,-155.05,0.00010539,2]
[340548311,1729439239181,-409.284,0.00010584,2]
[340548312,1729439239201,-170.451,0.00010584,2]
[340548313,1729439239221,-150.0,0.00010799,2]
[340548314,1729439239242,-3648.03706983,0.000108,2]
[340548315,1729439247130,-1917.35165778,0.000108,2]
[340548316,1729439356899,304.59559639,8.913e-05,2]
[340548317,1729439356920,355.29440361,8.913e-05,2]
[340548328,1729439432332,-766.491769,0.00010431,2]
[340548329,1729439432342,-602.14618568,0.00010484,2]
[340548330,1729439432444,-107.29701432,0.00010484,2]
[340548331,1729439432454,-192.61303115,0.0001079,2]
[340548332,1729439432463,-150.0,0.00010796,2]
[340548333,1729439432473,-150.0,0.00010799,2]
[340548334,1729439432483,-300.0,0.00010799,2]
[340548335,1729439432493,-2537.96815045,0.000108,2]
[340548336,1729439432542,-4424.59768256,0.000108,2]
[340548337,1729439432555,-5032.16679231,0.000108,2]
[340548338,1729439432634,-265952.02996508,0.000108,2]
[340548381,1729439439948,-49170.81793982,0.000108,2]
[340548382,1729439440065,-132117.76576932,0.000108,2]
[340548385,1729439440533,-2929.77353496,0.000108,2]
[340548386,1729439440544,-3462.7865227,0.000108,2]
[340548387,1729439440555,-1171.7639221,0.000108,2]
[340548388,1729439440568,-2742.57366703,0.000108,2]
[340548389,1729439440581,-6716.82307888,0.000108,2]
[340548395,1729439443313,-3427.618579,0.000108,2]
[340548396,1729439443516,-12165.09679205,0.000108,2]
[340548397,1729439443527,-3279.90311039,0.000108,2]
[340548398,1729439443539,-233382.47199147,0.000108,2]
[340548399,1729439443579,-885.22264984,0.000108,2]
[340548400,1729439446290,-111479.63549288,0.000108,2]
[340548401,1729439446342,-411.34,0.000108,2]
[340548402,1729439446562,-68555.90921377,0.000108,2]
[340548485,1729439598643,500.0,0.00027,120]
[340548486,1729439819216,150.0,0.00010393,2]
[340548487,1729439819239,292.09,0.00010393,2]
[340548488,1729439819261,444.70559639,0.00010393,2]
[340548489,1729439819281,800.0,0.00010393,2]
[340548490,1729439819302,800.0,0.00010393,2]
[340548491,1729439819323,800.0,0.00010393,2]
[340548492,1729439819344,800.0,0.00010393,2]
[340548493,1729439819364,700.0,0.00010393,2]
[340548494,1729439819387,19113.20440361,0.00010393,2]
[340548495,1729439982457,626.89,8.722e-05,2]
[340548496,1729440080379,500.0,0.00027,60]
[340548497,1729440090686,203.83670254,0.00027,60]
[340548498,1729440100176,500.0,0.00027,60]
[340548502,1729440199922,500.0,0.00027,120]
[340548503,1729440305258,15678.98,0.00010396,2]
[340548504,1729440369942,150.0,0.00010401,2]
[340548505,1729440411804,150.0,0.00010403,2]
[340548506,1729440425125,-1000.0,0.00010411,2]
[340548507,1729440425146,-215.58,0.00010464,2]
[340548508,1729440425166,-250.0,0.00010464,2]
[340548509,1729440425188,-178.5,0.0001048,2]
[340548510,1729440425208,-250.0,0.00010519,2]
[340548511,1729440425228,-200.0,0.00010535,2]
[340548512,1729440425248,-155.05,0.00010536,2]
[340548513,1729440425267,-6415.1029,0.000107,2]
[340548514,1729440425287,-179.48,0.00010702,2]
[340548515,1729440425307,-150.0,0.00010799,2]
[340548516,1729440425327,-300.0,0.00010799,2]
[340548517,1729440425349,-4114.82391544,0.000108,2]
[340548518,1729440443109,-24035.04479666,0.000108,2]
[340548519,1729440453893,150.0,0.00010405,2]
[340548536,1729440631467,-408.66472864,0.000107,2]
[340548537,1729440634339,-8732.73311404,0.000107,2]
[340548538,1729440634394,-284.18849878,0.000107,2]
[340548539,1729440634406,-499.915646,0.000107,2]
[340548540,1729440634418,-577.95611254,0.000107,2]
[340548541,1729440634427,-150.0,0.00010797,2]
[340548542,1729440634437,-150.0,0.00010799,2]
[340548543,1729440634447,-2255.22450746,0.000108,2]
[340548544,1729440634458,-1096.40924013,0.000108,2]
[340548545,1729440634470,-15321.94124027,0.000108,2]
[340548546,1729440634482,-25911.06468943,0.000108,2]
[340548547,1729440634557,-6862.1,0.000108,2]
[340548548,1729440634569,-689.06292265,0.000108,2]
[340548549,1729440634727,-286.18192272,0.000108,2]
[340548550,1729440634739,-11400.27152541,0.000108,2]
[340548563,1729440638280,-859.25,0.000108,2]
[340548564,1729440638335,-2293.848648,0.000108,2]
[340548565,1729440638388,-510.98991867,0.000108,2]
[340548616,1729440639450,-35877.08420958,0.000108,2]
[340548631,1729440639607,-1281.43249052,0.000108,2]
[340548633,1729440639619,-871.27874866,0.000108,2]
[340548635,1729440639630,-2841.97689222,0.000108,2]
[340548644,1729440639713,-687.21273959,0.000108,2]
[340548724,1729440642495,-22999.75907172,0.000108,2]
[340548725,1729440642707,-1387.12961964,0.000108,2]
[340548726,1729440642761,-1344.73240597,0.000108,2]
[340548727,1729440642772,-33215.01936274,0.000108,2]
[340548728,1729440642785,-128896.22317708,0.000108,2]
[340548729,1729440642795,-150.0,0.00010877,2]
[340548730,1729440642805,-1685.54458182,0.00010899,2]
[340548731,1729440642814,-167.76082699,0.000109,2]
[340548732,1729440642824,-1791.17852972,0.000109,2]
[340548733,1729440642833,-225.2,0.00010913,2]
[340548734,1729440642843,-500.0,0.00010958,2]
[340548735,1729440642852,-155.0127361,0.00010958,2]
[340548736,1729440642862,-500.0,0.00010958,2]
[340548737,1729440642871,-500.0,0.00010958,2]
[340548738,1729440642880,-480.74759812,0.00010958,2]
[340548739,1729440642892,-19.25240188,0.00010958,2]
[340548740,1729440642901,-500.0,0.00010958,2]
[340548741,1729440642911,-500.0,0.00010958,2]
[340548742,1729440642920,-254.88624392,0.00010958,2]
[340548743,1729440642929,-444.3613542,0.00010958,2]
[340548749,1729440645485,-55.6386458,0.00010958,2]
[340548750,1729440645495,-172.84,0.00010959,2]
[340548751,1729440645505,-167.26,0.00010959,2]
[340548752,1729440645514,-168.54,0.00010959,2]
[340548753,1729440645524,-19.99064061,0.00010959,2]
[340548754,1729440645539,-213.13935939,0.00010959,2]
[340548755,1729440645548,-260.92,0.00010959,2]
[340548756,1729440645557,-250.0,0.00010959,2]
[340548757,1729440645566,-2000.0,0.00010959,2]
[340548758,1729440645576,-1126.55,0.00010959,2]
[340548759,1729440645585,-626.89,0.00010985,2]
[340548760,1729440645595,-408.92829036,0.00010999,2]
[340548761,1729440645604,-289.46,0.00010999,2]
[340548762,1729440645613,-189.39049231,0.00010999,2]
[340548763,1729440645701,-3563.45950769,0.00010999,2]
[340548764,1729440645710,-184.66857122,0.00010999,2]
[340548765,1729440645746,-315.33142878,0.00010999,2]
[340548766,1729440645755,-425.83500871,0.00010999,2]
[340548767,1729440645765,-1929.3940955,0.00011,2]
[340548768,1729440645776,-270.25,0.00011,2]
[340548769,1729440645789,-716.85183615,0.00011,2]
[340548770,1729440645812,-3375.32480474,0.00011,2]
[340548771,1729440658665,250.0,0.0001,2]
[340548772,1729440774149,564.2,0.00010059,2]
[340548773,1729440821361,500.0,0.00026933,120]
[340548774,1729440999437,300.0,0.00027,120]
[340548775,1729441059617,777.06984279,0.00027,60]
[340548776,1729441068581,1000.0,0.00027,61]
[340548777,1729441077420,1000.0,0.00027,62]
[340548780,1729441398093,512.212752,0.00027,120]
[340548781,1729441626840,-150.0,0.00010475,2]
[340548782,1729441647137,-535.99,0.00010485,2]
[340548783,1729441647157,-311.61,0.000106,2]
[340548784,1729441647177,-432.523,0.0001078,2]
[340548785,1729441647202,-181.576,0.0001078,2]
[340548786,1729441647228,-2220.535,0.000108,2]
[340548787,1729441647251,-2667.98732144,0.000109,2]
[340548788,1729441649571,-150.0,0.0001047,2]
[340548795,1729441831588,-370.14451786,0.00010799,2]
[340548796,1729441831599,-482.663428,0.00010844,2]
[340548797,1729441831609,-300.0,0.00010899,2]
[340548798,1729441831619,-514.29297856,0.000109,2]
[340548799,1729441831629,-485.651,0.000109,2]
[340548800,1729441831638,-3595.52157197,0.000109,2]
[340548801,1729441831648,-152.83421664,0.000109,2]
[340548802,1729441831657,-3719.6770927,0.000109,2]
[340548803,1729441831667,-172.84,0.00010959,2]
[340548804,1729441831676,-150.0,0.00010996,2]
[340548805,1729441831686,-2165.3199102,0.00010997,2]
[340548806,1729441831695,-16837.05528407,0.00010997,2]
[340548807,1729441831708,-640.77475726,0.00010997,2]
[340548808,1729441831721,-2582.24700937,0.00010997,2]
[340548809,1729441831730,-408.92829036,0.00010999,2]
[340548810,1729441831740,-403.02718478,0.00010999,2]
[340548811,1729441831749,-46.41340779,0.00010999,2]
[340548812,1729441831760,-453.58659221,0.00010999,2]
[340548813,1729441831770,-263.49183499,0.00010999,2]
[340548814,1729441831779,-1845.99681554,0.00011,2]
[340548852,1729441838037,-722.58082054,0.00011,2]
[340548853,1729441838050,-30577.686,0.00011,2]
[340548854,1729441838293,-13639.80379541,0.00011,2]
[340548855,1729441838304,-2207.52666908,0.00011,2]
[340548856,1729441838316,-16547.05381555,0.00011,2]
[340548857,1729441838387,-925.30673529,0.00011,2]
[340548858,1729441838399,-2726.61475715,0.00011,2]
[340548859,1729441838411,-10853.29035889,0.00011,2]
[340548860,1729441838422,-409.28,0.00011,2]
[340548861,1729441838433,-802.9515304,0.00011,2]
[340548862,1729441838445,-878.42958225,0.00011,2]
[340548863,1729441838460,-456.33706747,0.00011,2]
[340548971,1729441841339,-400.84895135,0.00011,2]
[340549089,1729441842586,-827.30933768,0.00011,2]
[340549092,1729441842598,-1675.29938108,0.00011,2]
[340549094,1729441842610,-1668.72494686,0.00011,2]
[340549099,1729441842644,-412.1753019,0.00011,2]
[340549101,1729441842655,-2006385.04794687,0.00011,2]
[340549104,1729441842668,-671.32315737,0.00011,2]
[340549106,1729441842680,-485.29999995,0.00011,2]
[340549108,1729441842692,-709.17,0.00011,2]
[340549110,1729441842703,-4445.23740939,0.00011,2]
[340549112,1729441842714,-15138.74697795,0.00011,2]
[340549115,1729441842724,-471.44131326,0.00011,2]
[340549117,1729441842740,-363.33683964,0.00011,2]
[340549120,1729441842757,-1060.26480912,0.00011,2]
[340549122,1729441842768,-438.49481,0.00011,2]
[340549124,1729441842779,-310.0354285,0.00011,2]
[340549126,1729441842789,-40007.47351251,0.00011,2]
[340549129,1729441842801,-619.99984789,0.00011,2]
[340549131,1729441842812,-636.87818,0.00011,2]
[340549133,1729441842824,-19092.36740776,0.00011,2]
[340549135,1729441842835,-505.5664408,0.00011,2]
[340549137,1729441842846,-17363.33012065,0.00011,2]
[340549139,1729441842857,-1973.28541823,0.00011,2]
[340549142,1729441842868,-305.20127118,0.00011,2]
[340549144,1729441842883,-432.89653833,0.00011,2]
[340549146,1729441842894,-1117.28317245,0.00011,2]
[340549148,1729441842906,-341.88491473,0.00011,2]
[340549150,1729441842917,-4200.0,0.00011,2]
[340549153,1729441842928,-1023.82317081,0.00011,2]
[340549155,1729441842941,-2005.80185951,0.00011,2]
[340549157,1729441842952,-327.30108004,0.00011,2]
[340549159,1729441842964,-908.00465528,0.00011,2]
[340549178,1729441843132,-2130.74418737,0.00011,2]
[340549194,1729441843274,-2754.31674355,0.00011,2]
[340549196,1729441843286,-263.2950011,0.00011,2]
[340549199,1729441843297,-389.53636703,0.00011,2]
[340549201,1729441843310,-534.95016412,0.00011,2]
[340549203,1729441843321,-607.00378439,0.00011,2]
[340549205,1729441843336,-605.70812265,0.00011,2]
[340549447,1729441845605,-334.61145693,0.00011,2]
[340549451,1729441845617,-1079.82624402,0.00011,2]
[340549454,1729441845628,-4296.75088854,0.00011,2]
[340549457,1729441845638,-16344.51668327,0.00011,2]
[340549461,1729441845650,-2836.89857251,0.00011,2]
[340549463,1729441845662,-14215.85805118,0.00011,2]
[340549467,1729441845688,-519.00794836,0.00011,2]
[340549478,1729441845780,-9834.19473332,0.00011,2]
[340549496,1729441845950,-2775.23190365,0.00011,2]
[340549498,1729441845961,-5210.14308199,0.00011,2]
[340549501,1729441845972,-442.82396974,0.00011,2]
[340549503,1729441845983,-1089.88117537,0.00011,2]
[340549505,1729441845994,-4506.63722945,0.00011,2]
[340549507,1729441846005,-3213.00530478,0.00011,2]
[340549509,1729441846016,-2701.23101814,0.00011,2]
[340549511,1729441846026,-5164.28147376,0.00011,2]
[340549514,1729441846037,-40531.55046532,0.00011,2]
[340549516,1729441846048,-1161.32595796,0.00011,2]
[340549518,1729441846059,-405.8537147,0.00011,2]
[340549520,1729441846074,-544.14569313,0.00011,2]
[340549522,1729441846084,-422.91126348,0.00011,2]
[340549525,1729441846095,-547.44,0.00011,2]
[340549527,1729441846107,-2600.60967681,0.00011,2]
[340549529,1729441846118,-319.0,0.00011,2]
[340549531,1729441846128,-454.48097926,0.00011,2]
[340549533,1729441846139,-3627.57220054,0.00011,2]
[340549535,1729441846150,-69307.81672762,0.00011,2]
[340549538,1729441846161,-299.07844765,0.00011,2]
[340549540,1729441846172,-1744.32203037,0.00011,2]
[340549542,1729441846183,-417.95823573,0.00011,2]
[340549544,1729441846195,-572.08599567,0.00011,2]
[340549546,1729441846206,-268.25,0.00011,2]
[340549548,1729441846217,-82167.4320517,0.00011,2]
[340549551,1729441846228,-430.72220257,0.00011,2]
[340549555,1729441846256,-17061.62315174,0.00011,2]
[340549557,1729441846268,-2034.76206701,0.00011,2]
[340549559,1729441846278,-8694.57112734,0.00011,2]
[340549561,1729441846289,-189480.98509995,0.00011,2]
[340549563,1729441846300,-820.20907842,0.00011,2]
[340549566,1729441846313,-1375.91963111,0.00011,2]
[340549568,1729441846325,-1626.60634085,0.00011,2]
[340549570,1729441846336,-1041.98334023,0.00011,2]
[340549572,1729441846347,-5942.42976688,0.00011,2]
[340549575,1729441846358,-858.99079704,0.00011,2]
[340549577,1729441846369,-3065.96675403,0.00011,2]
[340549579,1729441846380,-542.79318473,0.00011,2]
[340549581,1729441846392,-351542.77415981,0.00011,2]
[340549583,1729441846404,-679790.84198374,0.00011,2]
[340549586,1729441846415,-3700.95767216,0.00011,2]
[340549588,1729441846427,-2372.81520537,0.00011,2]
[340549590,1729441846437,-357.56409185,0.00011,2]
[340549592,1729441846449,-1033.35696431,0.00011,2]
[340549594,1729441846460,-1217.64466643,0.00011,2]
[340549597,1729441846475,-5771.89169257,0.00011,2]
[340549599,1729441846485,-32525.2270776,0.00011,2]
[340549601,1729441846498,-8843.92475302,0.00011,2]
[340549603,1729441846510,-1675.74849414,0.00011,2]
[340549605,1729441846520,-1207.9555414,0.00011,2]
[340549687,1729441990181,150.0,0.00010038,2]
[340549688,1729441990202,47.99,0.00010038,2]
[340549689,1729442005200,102.01,9.94e-05,2]
[340549690,1729442005221,150.0,9.94e-05,2]
[340549691,1729442005240,150.0,9.94e-05,2]
[340549692,1729442005261,23.75,9.94e-05,2]
[340549693,1729442013107,126.25,9.94e-05,2]
[340549694,1729442013129,123.75,9.94e-05,2]
[340549695,1729442017150,71.73645085,9.94e-05,2]
[340549696,1729442017170,150.0,9.94e-05,2]
[340549697,1729442017189,278.26354915,9.94e-05,2]
[340549698,1729442024504,11.23995428,0.0001002,2]
[340549699,1729442024535,250.0,0.0001002,2]
[340549700,1729442024556,150.0,0.0001002,2]
[340549701,1729442024575,150.0,0.0001002,2]
[340549702,1729442024596,200.3302889,0.0001002,2]
[340549703,1729442024616,800.0,0.0001002,2]
[340549704,1729442024638,800.0,0.0001002,2]
[340549705,1729442024657,800.0,0.0001002,2]
[340549706,1729442024677,800.0,0.0001002,2]
[340549707,1729442024697,800.0,0.0001002,2]
[340549708,1729442024716,800.0,0.0001002,2]
[340549709,1729442024735,800.0,0.0001002,2]
[340549710,1729442024757,800.0,0.0001002,2]
[340549711,1729442024776,800.0,0.0001002,2]
[340549712,1729442024797,800.0,0.0001002,2]
[340549713,1729442024819,800.0,0.0001002,2]
[340549714,1729442024845,12261.23975682,0.0001002,2]
[340549715,1729442050847,181.47,9.889e-05,2]
[340549716,1729442065566,764.02,9.889e-05,2]
[340549717,1729442195835,150.0,9.885e-05,2]
[340549718,1729442206436,100.0,9.885e-05,2]
[340549719,1729442206458,150.0,9.885e-05,2]
[340549720,1729442206481,3011.64,9.885e-05,2]
[340549721,1729442211139,907.27,9.885e-05,2]
[340549722,1729442213428,200.23831791,0.00010356,2]
[340549723,1729442223184,1000.0,9.889e-05,2]
[340549724,1729442313922,250.0,9.885e-05,2]
[340549725,1729442336114,200.0,9.885e-05,2]
[340549726,1729442348964,2717.81,9.885e-05,2]
[340549727,1729442358258,162.96,9.885e-05,2]
[340549728,1729442372081,369.950643,0.00010382,2]
[340549729,1729442426765,774.59,8.219e-05,2]
[340549730,1729442456057,410.4,9.888e-05,2]
[340549731,1729442474472,250.0,0.0001,2]
[340549732,1729442507906,250.0,9.886e-05,2]
[340549733,1729442596848,500.0,0.00027,120]
[340549734,1729442625459,212.88,9.881e-05,2]
[340549735,1729442722539,200.0,9.873e-05,2]
[340549736,1729442831118,-183.59,0.00010421,2]
[340549737,1729442831139,-774.59,0.0001047,2]
[340549738,1729442831159,-150.0,0.00010712,2]
[340549739,1729442831182,-150.0,0.00010728,2]
[340549740,1729442831204,-150.0,0.00010729,2]
[340549741,1729442831226,-150.0,0.00010729,2]
[340549742,1729442831248,-150.0,0.00010737,2]
[340549743,1729442831269,-150.0,0.00010737,2]
[340549744,1729442831290,-150.0,0.00010738,2]
[340549745,1729442831310,-3554.4,0.0001074,2]
[340549746,1729442831338,-150.0,0.00010741,2]
[340549747,1729442831359,-150.0,0.00010742,2]
[340549748,1729442831379,-2037.75,0.00010742,2]
[340549749,1729442831399,-999.99,0.00010742,2]
[340549750,1729442831607,-499.99,0.00010742,2]
[340549751,1729442831632,-299.99,0.00010742,2]
[340549752,1729442831653,-6791.30083825,0.00010742,2]
[340549753,1729442850082,-1164.10350318,0.00010742,2]
[340549754,1729442865638,250.0,9.889e-05,2]
[340549755,1729442923233,783.338641,0.00027,60]
[340549756,1729442972446,180.16,9.889e-05,2]
[340549757,1729442997459,819.72,8.219e-05,2]
[340549758,1729443024917,250.0,9.886e-05,2]
[340549764,1729443031815,-819.72,0.0001047,2]
[340549765,1729443031825,-800.0,0.00010642,2]
[340549766,1729443031834,-797.70282931,0.00010742,2]
[340549767,1729443031845,-1246.88282926,0.00010742,2]
[340549768,1729443031854,-150.99,0.00010742,2]
[340549769,1729443031863,-300.0,0.00010742,2]
[340549770,1729443031872,-286.09,0.00010743,2]
[340549771,1729443031882,-1514.16,0.00010743,2]
[340549772,1729443031891,-2680.85967654,0.00010743,2]
[340549773,1729443031903,-4261.97032346,0.00010743,2]